bitfinex/quotes_ETHUSD_20251226
["timestamp","ask_amount","ask_price","bid_price","bid_amount"]
[1766716283799,0.03682556,2985.3,2984.2,1.4324]
[1766716283986,1.4251,2985.4,2984.2,1.4324]
[1766716284192,0.03682556,2985.7,2984.5,1.4424781]
[1766716284369,1.4251,2985.9,2984.5,1.4424781]
[1766716284370,0.03682556,2985.6,2984.7,0.0100781]
[1766716284569,1.4251,2985.9,2984.9,0.0100781]
[1766716284873,0.03682556,2985.8,2985.1,0.0100781]
[1766716285078,3.38545094,2986.3,2985.2,0.03349859]
[1766716285480,0.03682556,2986.3,2985.5,0.0100781]
[1766716285868,0.03682556,2986.4,2985.5,1.4424781]
[1766716286170,1.46192556,2986.6,2985.3,0.0100781]
[1766716286369,1.4251,2986.3,2985.1,1.4424781]
[1766716286576,6.69702652,2986.4,2984.8,1.4324]
[1766716286577,1.4251,2986.1,2984.8,1.4324]
[1766716286782,0.03682556,2986.0,2984.9,0.03350195]
[1766716286998,0.03682556,2986.0,2984.8,1.4324]
[1766716287502,1.46192556,2986.0,2984.8,1.4324]
[1766716287669,0.03682556,2986.0,2985.3,3.34973941]
[1766716287871,0.03682556,2986.3,2985.4,0.33497394]
[1766716288103,0.03682556,2986.3,2985.5,0.03349522]
[1766716288297,1.46192556,2986.9,2985.6,0.0334941]
[1766716288504,1.4251,2986.7,2985.7,0.03349298]
[1766716288691,0.03682556,2986.6,2985.7,1.4324]
[1766716288999,0.03682556,2986.7,2985.7,1.4324]
[1766716289374,1.46192556,2986.7,2985.1,1.4334]
[1766716289576,1.4251,2986.5,2985.1,1.4334]
[1766716289772,1.46192556,2986.4,2985.1,1.4334]
[1766716290066,1.46192556,2986.4,2985.1,0.001]
[1766716290476,1.4251,2986.1,2985.1,0.001]
[1766716290711,1.4251,2985.9,2985.1,0.001]
[1766716291007,1.46192556,2985.8,2984.6,1.4324]
[1766716291168,1.46192556,2985.8,2984.1,1.4324]
[1766716291498,1.46192556,2985.8,2984.2,7.73503916]
[1766716291702,1.46192556,2985.8,2984.4,1.4324]
[1766716292201,1.46192556,2985.8,2984.4,4.78314741]
[1766716292399,3.34929832,2985.7,2984.4,4.78315402]
[1766716292570,0.03682556,2985.6,2984.5,0.03350644]
[1766716292772,0.03682556,2985.6,2984.4,1.4324]
[1766716292973,0.33861239,2985.5,2984.4,1.4324]
[1766716293201,0.03682556,2985.4,2984.5,1.46590644]
[1766716293702,0.03682556,2985.7,2984.5,1.46590644]
[1766716294000,4.77379622,2986.3,2984.8,1.4324]
[1766716294318,1.46192556,2986.2,2984.9,1.46590195]
[1766716294502,1.46192556,2986.2,2984.9,1.4324]
[1766716294805,0.03682556,2986.2,2985.1,1.4324]
[1766716294970,0.03682556,2986.4,2985.2,1.46589859]
[1766716295907,3.34791583,2987.0,2985.4,1.4324]
[1766716296080,0.03682556,2986.9,2985.6,1.4324]
[1766716296281,1.46192556,2986.9,2985.7,0.03349298]
[1766716296491,1.46192556,2986.9,2985.6,1.4324]
[1766716296822,1.4251,2986.7,2985.6,1.4324]
[1766716297114,1.4251,2986.7,2985.7,0.03349298]
[1766716297115,0.03682556,2986.6,2985.7,0.03349298]
[1766716297910,1.4251,2986.5,2985.2,3.34977104]
[1766716298095,0.03682556,2986.4,2985.3,3.68471768]
[1766716298298,0.03682556,2986.4,2985.6,3.34940392]
[1766716298605,0.03682556,2986.9,2985.7,1.46589298]
[1766716298806,0.03682556,2987.2,2986.1,1.4324]
[1766716299120,0.03682556,2987.3,2986.3,1.4324]
[1766716299573,0.03682556,2987.3,2986.4,2.4230066]
[1766716299774,0.03682556,2987.3,2986.4,1.4324]
[1766716300506,0.002,2987.4,2986.4,1.4324]
[1766716300888,0.002,2987.4,2986.5,0.03348401]
[1766716301088,0.03882556,2987.4,2986.5,0.03348401]
[1766716301314,0.37742495,2987.4,2986.4,1.4324]
[1766716301682,0.03682556,2988.1,2986.6,1.4324]
[1766716301888,0.03682556,2988.1,2986.9,11.836027]
[1766716302121,0.03682556,2988.2,2986.9,1.5476]
[1766716302423,1.4585,2988.1,2986.5,1.5476]
[1766716302624,1.4585,2987.9,2986.6,0.82446168]
[1766716302807,1.4585,2987.6,2986.6,0.82446168]
[1766716303007,0.03682556,2987.5,2986.7,0.03348176]
[1766716303234,0.03682556,2987.5,2986.6,3.38174911]
[1766716303604,0.03682556,2987.5,2986.6,0.03348289]
[1766716304101,0.0100781,2988.2,2986.6,0.03348289]
[1766716304102,0.002,2988.6,2986.8,0.0100781]
[1766716304302,0.002,2988.6,2987.4,1.5489]
[1766716304520,0.002,2988.6,2987.6,1.5489]
[1766716304721,0.002,2988.6,2988.0,1.5489]
[1766716304922,0.002,2988.6,2987.9,3.34683222]
[1766716304923,0.002,2989.5,2988.1,1.5489]
[1766716305141,1.4586,2989.5,2988.1,1.58236608]
[1766716305430,1.4586,2989.5,2988.3,1.5489]
[1766716305431,0.002,2989.5,2988.3,1.5489]
[1766716306211,0.002,2989.5,2988.0,0.33468322]
[1766716306212,1.4566,2989.4,2988.0,0.33468322]
[1766716306418,1.4566,2989.4,2988.1,1.58236608]
[1766716306628,1.4566,2989.4,2988.1,1.5489]
[1766716306856,3.34526477,2989.3,2988.1,1.5489]
[1766716307026,0.002,2988.7,2988.1,1.5489]
[1766716307405,0.002,2988.7,2987.7,0.87]
[1766716307602,1.4586,2988.7,2987.7,0.87]
[1766716307801,0.002,2988.7,2987.7,0.87]
[1766716308030,0.002,2988.7,2987.7,2.4189]
[1766716308232,1.4586,2988.7,2987.7,0.87]
[1766716308739,1.4586,2988.7,2987.0,3.34778543]
[1766716308740,1.4566,2988.5,2987.0,4.16515]
[1766716308908,1.4566,2988.5,2986.9,1.5489]
[1766716309103,1.4666781,2988.5,2986.9,1.5489]
[1766716310216,1.4666781,2988.5,2987.0,0.0334784]
[1766716310420,0.56968045,2988.5,2987.2,1.5489]
[1766716310629,0.56968045,2988.5,2987.3,0.03347504]
[1766716310831,3.34627225,2988.4,2987.2,1.5489]
[1766716311033,0.56968045,2988.5,2987.3,1.58237504]
[1766716311206,0.56968045,2988.5,2987.4,1.5489]
[1766716311410,0.002,2988.7,2987.6,1.5489]
[1766716311632,1.4566,2988.6,2987.4,0.82773639]
[1766716311843,1.4566,2988.6,2987.2,2.29]
[1766716312206,1.4566,2988.6,2987.3,3.38097184]
[1766716312412,0.002,2988.7,2987.7,1.5489]
[1766716312636,0.002,2988.7,2987.3,6.69500123]
[1766716312637,3.34604831,2988.6,2987.4,6.586853]
[1766716312842,1.4586,2988.7,2987.6,1.5489]
[1766716313042,1.4566,2988.6,2987.2,13.419078]
[1766716313338,1.4566,2988.6,2987.3,9.270028]
[1766716313737,1.4566,2988.6,2987.2,1.5489]
[1766716313940,1.93705364,2988.6,2987.4,8.8]
[1766716314118,0.002,2988.5,2987.4,8.3489]
[1766716314449,0.002,2988.5,2987.5,0.0334728]
[1766716314737,0.002,2988.5,2987.6,1.5489]
[1766716314943,0.002,2988.5,2987.8,1.5489]
[1766716315108,0.002,2988.5,2987.9,0.03346832]
[1766716315640,0.002,2988.5,2987.8,2.37656623]
[1766716315944,0.002,2988.7,2988.0,1.5489]
[1766716316152,0.002,2988.7,2988.1,1.58236608]
[1766716316510,3.34711041,2989.5,2988.2,13.834683]
[1766716316741,0.48237104,2989.5,2988.3,2.96917875]
[1766716317044,3.82742586,2989.5,2988.3,4.92870895]
[1766716317247,3.82742586,2989.5,2988.4,1.5489]
[1766716317248,0.48237104,2989.5,2988.4,1.5489]
[1766716317545,6.67846528,2994.7,2992.5,0.0100781]
[1766716317848,6.67846528,2994.7,2992.6,0.869]
[1766716317849,0.0100781,2993.9,2992.6,0.869]
[1766716318145,0.0100781,2992.9,2992.1,1.5489]
[1766716318321,0.0100781,2992.3,2992.2,0.03342022]
[1766716318523,0.0100781,2992.5,2991.7,13.188279]
[1766716318727,0.0100781,2992.9,2991.7,13.188279]
[1766716318728,0.0100781,2992.9,2991.8,1.5489]
[1766716319047,0.04349832,2992.8,2991.9,10.263156]
[1766716319243,0.0100781,2993.1,2991.6,0.17457242]
[1766716319244,0.0100781,2992.7,2991.6,0.17457242]
[1766716319411,0.04349832,2993.0,2991.8,3.34240514]
[1766716319611,0.0100781,2992.6,2991.6,0.17457242]
[1766716319840,0.0100781,2992.6,2991.7,0.03342581]
[1766716320044,0.0100781,2992.4,2991.6,0.17457242]
[1766716320245,0.0100781,2991.5,2990.2,1.5489]
[1766716320556,0.0100781,2991.5,2989.5,6.69008194]
[1766716320557,0.0100781,2991.1,2990.0,9.194493]
[1766716320753,0.0100781,2991.7,2990.1,1.5489]
[1766716320914,0.03342022,2992.3,2990.7,1.5489]
[1766716321115,0.03342022,2992.9,2991.1,1.5489]
[1766716321328,0.0100781,2992.2,2991.0,4.600136]
[1766716321523,0.03342022,2992.1,2991.2,4.63769]
[1766716321716,0.0100781,2992.4,2992.2,0.03676535]
[1766716322035,0.03342022,2992.5,2992.2,0.03676535]
[1766716322235,1.4566,2993.6,2992.2,0.03676535]
[1766716322542,0.0100781,2993.1,2992.2,0.28223188]
[1766716322771,0.03342022,2993.3,2992.3,0.0334191]
[1766716322914,0.03342022,2993.6,2992.3,4.92419014]
[1766716323114,0.0100781,2993.4,2992.4,4.784694]
[1766716323349,0.0100781,2993.2,2992.2,0.03676535]
[1766716323565,0.0100781,2992.8,2992.2,0.03676535]
[1766716323846,0.04349832,2993.0,2992.2,0.03676535]
[1766716324144,0.04349832,2993.1,2992.2,0.03676535]
[1766716324442,0.0100781,2992.9,2992.2,0.03676535]
[1766716324650,0.0100781,2992.5,2992.2,0.03676535]
[1766716324812,0.03342022,2992.4,2991.2,2.4169]
[1766716325126,0.0100781,2992.3,2991.3,3.05762228]
[1766716325321,0.03342022,2992.2,2991.2,2.4169]
[1766716325521,0.0100781,2992.4,2991.2,6.0016635]
[1766716325750,0.04349832,2992.5,2991.3,6.07389]
[1766716325956,0.04349832,2992.5,2991.4,3.532]
[1766716326154,0.0100781,2993.2,2991.5,1.58232804]
[1766716326464,0.0100781,2992.9,2991.8,10.89849]
[1766716326665,3.35076688,2993.4,2991.9,0.03342357]
[1766716326872,0.0100781,2993.0,2992.0,14.151036]
[1766716327065,1.4566,2993.1,2992.0,0.868]
[1766716327252,0.0100781,2992.7,2992.0,0.868]
[1766716327766,0.0100781,2992.5,2992.0,0.868]
[1766716328270,0.0100781,2992.5,2991.4,1.5489]
[1766716328474,0.0100781,2992.5,2991.4,2.62980738]
[1766716328635,0.0100781,2992.5,2991.5,0.03342804]
[1766716328837,0.0100781,2992.5,2991.5,4.656758]
[1766716329040,0.0100781,2992.7,2991.6,6.76036]
[1766716329270,5.66870298,2993.1,2991.7,0.03342581]
[1766716329465,0.57795621,2993.0,2991.7,0.03342581]
[1766716329776,1.4566,2993.6,2992.1,1.5489]
[1766716329975,0.0100781,2993.3,2992.2,1.5489]
[1766716330272,0.0100781,2993.3,2992.3,3.203103]
[1766716330469,0.0120781,2993.5,2992.4,1.58231799]
[1766716330770,0.0120781,2993.5,2992.5,2.2534]
[1766716330771,0.002,2993.5,2992.5,2.2534]
[1766716331078,1.4586,2994.7,2993.0,3.004588]
[1766716331370,0.002,2994.2,2993.4,12.190131]
[1766716331542,0.002,2994.2,2993.5,10.535997]
[1766716331738,0.002,2994.7,2993.6,1.58230459]
[1766716331945,0.0100781,2994.6,2993.6,1.5489]
[1766716332263,1.4666781,2994.5,2993.0,1.5489]
[1766716332473,0.0100781,2994.3,2993.1,0.03341017]
[1766716332675,1.4666781,2993.7,2991.9,3.34225545]
[1766716332842,1.4666781,2993.3,2991.9,1.88941759]
[1766716333042,0.0100781,2993.1,2992.0,0.03342245]
[1766716333256,0.0100781,2992.9,2991.5,0.03342804]
[1766716333475,1.4666781,2992.7,2991.4,3.339871]
[1766716333674,1.4566,2992.7,2991.5,0.03342804]
[1766716333882,1.4566,2992.7,2991.3,0.001]
[1766716334089,0.23376781,2992.7,2991.4,5.135871]
[1766716334276,0.8810781,2992.9,2991.5,0.03342804]
[1766716334480,0.8810781,2992.9,2991.4,0.03342916]
[1766716334776,0.0100781,2992.7,2991.3,0.001]
[1766716334978,0.0100781,2992.0,2990.2,1.5415]
[1766716335182,0.0100781,2991.6,2990.3,2.4702]
[1766716335355,0.87,2991.9,2990.5,1.5415]
[1766716335559,0.87,2991.9,2990.7,3.34367437]
[1766716335757,0.87,2991.9,2990.6,19.232775]
[1766716335758,0.87,2991.9,2990.9,3.1933]
[1766716336072,0.87,2991.9,2991.0,0.03343363]
[1766716336261,0.87,2991.9,2990.9,4.675084]
[1766716336457,4.76409866,2992.5,2991.1,3.378092]
[1766716336659,0.0100781,2992.4,2991.0,3.251]
[1766716336857,0.0100781,2992.2,2990.8,1.5415]
[1766716337091,1.4324781,2992.0,2990.2,4.88574039]
[1766716337264,1.4324781,2992.0,2990.4,3.700062]
[1766716337464,1.4224,2992.0,2990.6,6.244692]
[1766716337698,1.4224,2992.0,2990.7,0.03343698]
[1766716337995,2.23306686,2991.9,2990.7,0.03343698]
[1766716338289,2.23306686,2991.9,2990.6,0.001]
[1766716338290,0.0100781,2991.8,2990.6,0.001]
[1766716338689,0.0100781,2991.6,2990.6,0.001]
[1766716338987,6.68560922,2991.5,2990.6,0.001]
[1766716339186,0.66956873,2991.4,2990.6,0.001]
[1766716339560,4.21224894,2992.0,2990.6,0.001]
[1766716339764,1.4224,2991.9,2990.6,0.001]
[1766716340065,1.4324781,2991.9,2990.6,0.001]
[1766716340266,0.0100781,2991.6,2990.6,0.001]
[1766716340589,1.4224,2991.5,2990.1,0.001]
[1766716341101,6.68583272,2991.4,2990.1,0.001]
[1766716341301,0.0100781,2991.1,2989.5,0.001]
[1766716341596,1.4224,2990.9,2989.6,2.458]
[1766716341798,1.4224,2990.9,2989.5,0.001]
[1766716342499,1.4224,2990.9,2988.9,3.34670072]
[1766716342500,0.0100781,2989.9,2988.9,0.001]
[1766716342799,1.4224,2989.8,2988.0,3.272976]
[1766716343007,1.4224,2990.6,2988.8,3.34574128]
[1766716343304,1.4224,2990.6,2988.3,1.5415]
[1766716343305,8.1109158,2990.2,2988.9,0.03345712]
[1766716343513,3.35400797,2990.5,2988.7,1.5415]
[1766716343671,3.34392987,2990.5,2989.0,8.2255]
[1766716343870,1.4224,2990.8,2989.4,11.427167]
[1766716344102,0.871,2990.9,2989.6,13.951679]
[1766716344314,0.871,2990.9,2989.8,3.586]
[1766716344476,1.4224,2990.8,2989.3,0.868]
[1766716344668,1.84383764,2990.8,2989.3,0.868]
[1766716344911,1.84383764,2990.8,2989.4,0.03345152]
[1766716345074,1.4224,2990.7,2989.4,0.03345152]
[1766716345274,4.7662106,2990.6,2989.3,0.868]
[1766716345485,0.871,2990.9,2989.5,10.724042]
[1766716345700,4.2144752,2990.9,2989.6,3.9221]
[1766716345890,7.55800345,2990.9,2989.6,3.9221]
[1766716346086,0.871,2990.9,2989.5,1.5415]
[1766716346303,2.2934,2991.6,2989.8,12.620147]
[1766716346519,1.4324781,2991.5,2990.0,2.45857]
[1766716346804,1.4324781,2991.3,2989.5,3.106662]
[1766716346973,1.4324781,2991.3,2989.7,5.819992]
[1766716347175,4.76542813,2991.3,2990.0,8.406828]
[1766716347415,1.4224,2991.3,2990.1,0.03344369]
[1766716347617,1.4224,2991.3,2989.8,3.285509]
[1766716347618,1.4224,2991.2,2989.8,3.285509]
[1766716347772,1.4224,2991.2,2989.9,0.03344593]
[1766716347977,2.234254,2991.1,2989.7,1.5415]
[1766716348277,2.234254,2991.1,2989.8,0.03344705]
[1766716348677,1.4224,2991.0,2989.8,0.03344705]
[1766716348991,1.4224,2991.0,2989.4,2.34026152]
[1766716349191,0.811854,2991.1,2989.6,3.158337]
[1766716349192,3.343587,2990.8,2989.6,3.158337]
[1766716349586,0.811854,2991.1,2989.7,1.57494817]
[1766716349790,3.34312501,2991.3,2989.7,1.57494817]
[1766716349978,3.34312501,2991.3,2989.7,1.5415]
[1766716350179,1.4224,2991.1,2989.7,1.5415]
[1766716350395,1.4324781,2991.1,2989.7,1.5415]
[1766716350683,0.4765525,2991.2,2990.0,1.5415]
[1766716350895,0.0120781,2991.5,2990.2,4.0976]
[1766716350896,0.002,2991.5,2990.2,4.0976]
[1766716351080,0.0120781,2991.5,2990.4,2.67667]
[1766716351280,0.0100781,2991.1,2989.7,3.34477469]
[1766716351506,0.0100781,2990.9,2989.6,1.5415]
[1766716351805,0.0100781,2990.7,2989.4,2.644016]
[1766716352007,0.0100781,2990.7,2989.5,3.34499233]
[1766716352213,1.4324781,2990.9,2989.6,0.03344929]
[1766716352504,0.0100781,2990.5,2989.3,2.4095]
[1766716352678,0.0100781,2990.5,2989.4,0.24095]
[1766716353100,0.0100781,2990.5,2989.5,0.0334504]
[1766716353303,0.0100781,2990.3,2989.4,0.24095]
[1766716353508,0.0100781,2990.3,2988.8,1.5415]
[1766716353509,1.4324781,2990.3,2988.8,1.5415]
[1766716353825,1.4324781,2990.3,2988.9,0.03445712]
[1766716353826,0.0100781,2989.9,2988.9,0.03445712]
[1766716353981,0.0100781,2989.5,2988.9,0.001]
[1766716354693,0.0100781,2989.3,2988.3,0.868]
[1766716355434,0.0100781,2989.3,2988.3,1.28944247]
[1766716355611,0.0100781,2989.3,2988.3,0.868]
[1766716355807,3.3553725,2989.3,2988.2,4.362059]
[1766716355996,0.0100781,2989.3,2988.9,0.001]
[1766716356417,1.4324781,2989.5,2988.9,0.001]
[1766716356631,0.0100781,2989.5,2988.9,0.001]
[1766716356940,0.0100781,2989.5,2988.3,1.5415]
[1766716357220,0.0100781,2989.5,2988.4,3.21167472]
[1766716357517,3.34515287,2989.4,2988.5,0.8099533]
[1766716357727,0.0100781,2989.5,2988.6,0.03346048]
[1766716358020,3.34504874,2989.5,2988.6,0.03346048]
[1766716358380,3.35512684,2989.5,2988.3,1.5415]
[1766716358580,6.70017558,2989.5,2988.3,1.5415]
[1766716358777,1.28880308,2989.6,2988.3,1.5415]
[1766716359022,0.0100781,2990.6,2988.6,29.640192]
[1766716359023,0.889,2990.5,2988.6,29.640192]
[1766716359182,0.889,2990.5,2988.7,4.31659388]
[1766716359380,0.889,2990.3,2989.0,3.816]
[1766716359811,0.889,2990.1,2988.8,3.3457794]
[1766716360007,0.8796,2989.8,2988.7,0.869]
[1766716360183,0.8796,2989.8,2988.8,0.03345824]
[1766716360383,0.8796,2989.8,2988.4,0.03346272]
[1766716360384,0.0100781,2989.7,2988.4,0.03346272]
[1766716360784,0.0100781,2989.5,2988.4,3.37966436]
[1766716361109,0.8796,2989.8,2988.5,15.66784]
[1766716361317,3.3448172,2989.7,2988.6,1.57013027]
[1766716361487,3.3448172,2989.7,2988.5,2.224]
[1766716361682,4.22432761,2989.8,2988.6,14.456699]
[1766716361887,0.0100781,2989.7,2988.7,1.81373894]
[1766716362087,0.0100781,2989.7,2988.7,0.03345936]
[1766716362300,0.0100781,2989.5,2988.4,0.03346272]
[1766716362704,0.0100781,2989.5,2988.0,0.001]
[1766716362890,0.0100781,2989.4,2988.1,12.482153]
[1766716363090,0.0100781,2989.4,2988.0,0.001]
[1766716363091,0.0100781,2989.0,2988.0,0.001]
[1766716363517,0.0100781,2988.8,2988.0,0.001]
[1766716363714,3.35576176,2989.0,2988.0,0.001]
[1766716363715,3.35568364,2989.0,2988.0,0.001]
[1766716363930,0.0100781,2989.0,2988.0,0.33914011]
[1766716364235,0.0100781,2988.8,2988.1,1.31846608]
[1766716364435,0.0100781,2988.6,2988.1,0.03346608]
[1766716364638,0.0100781,2988.8,2988.0,1.286]
[1766716364808,0.871,2989.0,2988.1,1.31846608]
[1766716365008,4.21661635,2989.0,2988.1,1.285]
[1766716365436,0.0100781,2988.9,2988.1,1.285]
[1766716365608,0.76831699,2988.9,2988.1,1.285]
[1766716365806,0.0100781,2988.7,2988.0,0.001]
[1766716366145,0.76831699,2988.9,2988.0,1.286]
[1766716366146,0.0100781,2988.9,2988.0,1.286]
[1766716366805,0.0100781,2988.7,2988.0,1.286]
[1766716367518,0.871,2989.0,2988.0,1.286]
[1766716367842,0.871,2989.0,2988.2,1.285]
[1766716368153,0.0100781,2989.5,2988.4,1.285]
[1766716369919,3.34515287,2989.4,2988.4,1.285]
[1766716370307,1.21754356,2989.8,2988.5,1.3184616]
[1766716370308,4.21575384,2989.8,2988.5,1.3184616]
[1766716370511,0.0100781,2989.6,2988.7,1.285]
[1766716370716,0.002,2989.3,2988.7,1.285]
[1766716371339,0.002,2989.3,2988.1,1.95444357]
[1766716371534,0.0100781,2989.2,2988.2,0.03346496]
[1766716371931,0.0100781,2989.2,2988.3,1.285]
[1766716372244,0.0100781,2989.2,2988.4,1.31846272]
[1766716372610,0.002,2989.3,2988.5,1.285]
[1766716373050,0.002,2989.3,2988.6,0.03346048]
[1766716373217,0.002,2989.3,2988.7,1.285]
[1766716373842,0.871,2989.7,2988.9,1.285]
[1766716374042,0.871,2989.7,2989.1,1.285]
[1766716374217,0.871,2989.7,2988.7,1.285]
[1766716374542,0.871,2989.7,2988.9,1.285]
[1766716374848,3.34436975,2990.1,2989.1,1.285]
[1766716375144,3.34436975,2990.1,2989.2,0.03345376]
[1766716376540,3.35434689,2990.2,2989.2,1.31845376]
[1766716377041,0.002,2990.3,2989.4,1.285]
[1766716377345,0.002,2990.3,2989.6,1.285]
[1766716377714,0.002,2990.3,2989.7,1.285]
[1766716378948,1.3400781,2990.1,2989.0,1.285]
[1766716379124,1.3400781,2990.1,2988.4,1.285]
[1766716379125,0.0100781,2989.9,2988.4,1.285]
[1766716379329,1.3400781,2989.9,2988.6,1.285]
[1766716379648,1.3400781,2989.9,2988.7,1.31845936]
[1766716380418,0.0100781,2989.7,2988.7,1.285]
[1766716380820,0.0100781,2990.1,2988.9,1.285]
[1766716381037,7.03564144,2990.1,2989.1,1.285]
[1766716381350,0.0100781,2989.5,2988.2,1.285]
[1766716381542,0.0100781,2989.5,2988.3,0.03346384]
[1766716381543,0.0100781,2989.3,2988.3,0.03346384]
[1766716381857,0.0100781,2989.3,2988.3,1.285]
[1766716382044,0.0100781,2989.3,2988.4,1.31846272]
[1766716382354,0.0100781,2989.5,2988.2,1.31846496]
[1766716382653,0.0100781,2989.5,2988.4,1.285]
[1766716382870,0.0100781,2990.1,2988.2,3.34648402]
[1766716382871,0.002,2990.3,2988.6,1.285]
[1766716383028,0.002,2990.3,2989.0,1.285]
[1766716383029,0.0100781,2990.0,2989.0,1.285]
[1766716383425,0.0100781,2990.2,2989.0,1.285]
[1766716383619,0.67004671,2990.1,2989.0,1.285]
[1766716383825,0.67004671,2990.1,2989.2,1.285]
[1766716384020,0.002,2990.3,2989.3,1.31845264]
[1766716384243,0.002,2990.3,2989.3,1.285]
[1766716384490,0.002,2990.5,2989.6,10.483842]
[1766716384752,1.33,2991.4,2989.9,1.285]
[1766716384753,3.34298493,2991.4,2989.9,1.285]
[1766716384956,6.69604796,2991.4,2990.1,1.285]
[1766716385132,7.35575877,2991.4,2990.1,1.285]
[1766716385316,0.66978891,2991.4,2990.3,1.285]
[1766716385521,0.66978891,2991.4,2989.5,1.09044586]
[1766716385522,0.002,2991.5,2990.5,1.285]
[1766716385781,0.002,2991.5,2990.7,1.285]
[1766716386524,0.002,2991.5,2990.9,1.285]
[1766716386723,0.002,2991.5,2991.0,0.03343363]
[1766716387233,0.002,2991.5,2991.0,1.285]
[1766716387886,0.0100781,2992.0,2990.5,1.285]
[1766716388160,0.0100781,2991.8,2990.6,1.3184381]
[1766716388766,3.35264077,2991.8,2990.6,1.3184381]
[1766716388962,0.0100781,2991.4,2989.4,5.10626192]
[1766716389163,6.69520344,2991.8,2990.2,1.285]
[1766716389366,6.69520344,2991.8,2990.5,1.285]
[1766716389568,3.35234658,2992.0,2990.7,1.285]
[1766716389770,3.35234658,2992.0,2989.5,4.21400407]
[1766716389771,6.69461506,2992.0,2990.9,1.285]
[1766716389939,3.34226848,2992.0,2990.9,1.285]
[1766716390268,3.34373183,2992.5,2990.9,1.285]
[1766716390269,0.871,2992.4,2990.9,1.285]
[1766716390566,4.21286438,2992.4,2991.1,1.285]
[1766716390779,0.871,2992.4,2991.3,1.285]
[1766716390938,7.55459886,2992.4,2990.2,5.10626192]
[1766716391280,1.33,2992.2,2990.8,2.476]
[1766716391481,4.21279922,2992.4,2991.0,1.285]
[1766716391650,4.21279922,2992.4,2991.2,1.285]
[1766716391854,4.21279922,2992.4,2991.4,1.285]
[1766716391855,4.21281834,2992.4,2991.4,1.285]
[1766716392079,0.871,2992.4,2991.4,1.285]
[1766716392280,0.871,2992.4,2991.6,1.285]
[1766716392601,0.871,2992.4,2991.8,1.285]
[1766716392756,4.21284086,2992.4,2991.8,1.285]
[1766716393186,4.21282829,2992.4,2991.8,1.285]
[1766716393354,7.55465658,2992.4,2991.2,1.285]
[1766716393559,0.871,2992.4,2991.4,1.285]
[1766716394087,0.0100781,2992.3,2991.4,1.31842916]
[1766716394388,0.0100781,2992.3,2991.4,1.285]
[1766716394557,0.0100781,2992.3,2991.5,0.03342804]
[1766716394764,4.21284149,2992.4,2991.4,1.285]
[1766716394961,8.32143266,2992.4,2991.4,1.285]
[1766716395365,0.0100781,2992.2,2991.4,1.285]
[1766716395561,0.0100781,2991.8,2991.4,1.285]
[1766716395772,0.0100781,2991.8,2989.2,3.59527533]
[1766716395974,0.0100781,2991.3,2989.8,1.9316]
[1766716396183,0.0100781,2991.3,2990.0,1.9316]
[1766716396388,0.0100781,2991.3,2990.1,0.03344369]
[1766716396662,0.0100781,2990.9,2989.6,6.549072]
[1766716396863,0.0100781,2990.5,2989.1,0.33657946]
[1766716397071,0.0100781,2990.0,2988.6,0.001]
[1766716397486,0.871,2990.6,2988.7,7.115156]
[1766716397700,0.871,2990.6,2989.2,3.34526581]
[1766716397895,0.871,2990.6,2989.3,0.36797922]
[1766716398374,0.871,2990.6,2989.3,0.03345264]
[1766716398567,0.0100781,2990.9,2989.6,3.3449095]
[1766716398803,0.0100781,2990.9,2989.5,3.34503543]
[1766716399009,3.34336342,2991.0,2989.7,21.135276]
[1766716399171,0.871,2991.3,2989.9,2.626038]
[1766716399490,4.21403168,2991.3,2989.9,0.869]
[1766716399700,4.21403168,2991.3,2990.0,2.050334]
[1766716400078,7.55706336,2991.3,2990.0,2.050334]
[1766716400279,7.55706336,2991.3,2989.9,0.869]
[1766716400280,0.0100781,2991.2,2989.9,0.869]
[1766716400496,0.76578444,2991.2,2989.9,0.869]
[1766716400827,6.68650328,2991.1,2989.9,0.869]
[1766716401210,6.68650328,2991.1,2990.0,0.03344481]
[1766716401395,6.68650328,2991.1,2989.1,3.34545128]
[1766716401396,0.0100781,2991.0,2988.9,8.45190728]
[1766716401578,0.75530687,2991.0,2989.5,3.3450176]
[1766716401778,0.0100781,2990.8,2989.6,0.03344929]
[1766716401973,0.0100781,2990.8,2989.2,0.03345376]
[1766716402206,0.0100781,2990.6,2989.3,6.70626048]
[1766716402410,0.0100781,2990.6,2989.4,0.03345152]
[1766716402582,0.0100781,2990.6,2989.2,3.34537567]
[1766716402782,0.0100781,2990.2,2988.8,3.34579779]
[1766716403016,6.68829214,2990.3,2988.9,0.03345712]
[1766716403229,6.68829214,2990.3,2989.0,0.033456]
[1766716403230,0.0100781,2990.0,2989.0,0.033456]
[1766716403517,0.0100781,2990.0,2988.6,0.001]
[1766716403518,0.0100781,2989.6,2988.6,0.001]
[1766716403991,0.0100781,2989.4,2988.6,0.001]
[1766716404334,0.0100781,2988.8,2988.0,0.001]
[1766716404479,0.0100781,2989.0,2988.0,0.001]
[1766716405080,3.35576581,2989.0,2988.0,0.001]
[1766716405282,0.33557658,2988.9,2988.0,0.001]
[1766716405528,0.871,2989.5,2988.1,18.71132]
[1766716405686,4.21605794,2989.5,2988.3,2.640548]
[1766716406015,4.21605794,2989.5,2988.0,6.69441952]
[1766716406016,4.21605794,2989.5,2988.4,0.03346272]
[1766716406216,0.871,2989.5,2988.2,6.499725]
[1766716406522,0.871,2989.5,2988.4,3.099]
[1766716406822,4.21606526,2989.5,2988.1,2.82015]
[1766716406990,4.21606526,2989.5,2988.1,2.14015]
[1766716407186,0.871,2989.5,2988.2,8.883491]
[1766716407514,7.56109584,2989.5,2988.3,1.55766399]
[1766716407719,7.56109584,2989.5,2988.2,4.332529]
[1766716407882,7.56109584,2989.5,2988.2,2.664229]
[1766716408085,0.0100781,2989.4,2988.0,0.001]
[1766716408612,4.21604792,2989.5,2988.1,3.34657836]